Buisness Unit ,Buisness Code,Servic code,Service Unit,Service Label ,Organisational Unit ,Expenditure  , Payment Date,Net Payment  ,Transaction Number ,Supplier ID,Supplier Name
North West Leicestershire District Council,31UH,HRAHRM,Housing Repairs,HRA Housing Repairs & Maintenance,HRA Housing Repairs & Maintenance,Prepainting,16/10/2013,500.92,1268380,A035827,Novus Property Solutions Limited
North West Leicestershire District Council,31UH,HRAHRM,Housing Repairs,HRA Housing Repairs & Maintenance,HRA Housing Repairs & Maintenance,Schedule of Rates - repair and Maintenance,23/10/2013,502.36,1268861,A031787,Laker BMS Ltd
North West Leicestershire District Council,31UH,EEHL,Environmental Health,Environmental Health & Licensing,Environmental Health & Licensing,Hackney Carriage - Plates & Badges,23/10/2013,502.90,1268717,A034761,NewAuto Ltd
North West Leicestershire District Council,31UH,CDCC,Leisure Centres,Castle Donington Community College,Castle Donington Community College,Alternative Fitness Suite,16/10/2013,505.72,1268557,A005413,Elliott Group Limited
North West Leicestershire District Council,31UH,HRAHRM,Housing Repairs,HRA Housing Repairs & Maintenance,HRA Housing Repairs & Maintenance,external Painting ,09/10/2013,510.54,1267199,A035827,Novus Property Solutions Limited
North West Leicestershire District Council,31UH,HR,Corporate Director,Human Resources,Human Resources,Purchases,16/10/2013,525.00,1268014,A028625,Specsavers Corporate Eyecare
North West Leicestershire District Council,31UH,HRAHRM,Housing Repairs,HRA Housing Repairs & Maintenance,HRA Housing Repairs & Maintenance,Schedule of Rates - repair and Maintenance,16/10/2013,526.79,1268174,A031787,Laker BMS Ltd
North West Leicestershire District Council,31UH,ENOT,Street Management,Environment Transport,Environment Transport,Repairs - Parts,09/10/2013,530.66,1267161,A000486,Digraph Transport Supplies Ltd
North West Leicestershire District Council,31UH,HRAOPS,Housing,HRA Older Persons Service,HRA Older Persons Service,Transitional Protection,09/10/2013,531.12,1265711,A000950,Leicestershire County Council
North West Leicestershire District Council,31UH,HPLC,Leisure Centres,Hood Park Leisure Centre,Hood Park Leisure Centre,Service Contracts,02/10/2013,535.00,1265836,A000438,Cuckoo Gap Limited
North West Leicestershire District Council,31UH,HRAHRM,Housing Repairs,HRA Housing Repairs & Maintenance,HRA Housing Repairs & Maintenance,adhoc repair and replacement of doors,23/10/2013,539.91,1268978,A038041,I G Doors Limited
North West Leicestershire District Council,31UH,ENOT,Street Management,Environment Transport,Environment Transport,Repairs - Parts,16/10/2013,540.60,1268081,A001445,Scarab Sweepers Limited
North West Leicestershire District Council,31UH,HRAHRM,Housing Repairs,HRA Housing Repairs & Maintenance,HRA Housing Repairs & Maintenance,Schedule of Rates - repair and Maintenance,23/10/2013,541.55,1268936,A031787,Laker BMS Ltd
North West Leicestershire District Council,31UH,HRAHRM,Housing Repairs,HRA Housing Repairs & Maintenance,HRA Housing Repairs & Maintenance,external Painting ,09/10/2013,550.05,1267206,A035827,Novus Property Solutions Limited
North West Leicestershire District Council,31UH,HRAHRM,Housing Repairs,HRA Housing Repairs & Maintenance,HRA Housing Repairs & Maintenance,external Painting ,09/10/2013,550.05,1267253,A035827,Novus Property Solutions Limited
North West Leicestershire District Council,31UH,HPLC,Leisure Centres,Hood Park Leisure Centre,Hood Park Leisure Centre,Consumable Cleaning Materials/Hygiene,16/10/2013,551.18,1268032,A015996,Admiral Cleaning Supplies Ltd
North West Leicestershire District Council,31UH,HPLC,Leisure Centres,Hood Park Leisure Centre,Hood Park Leisure Centre,Operational Equipment,09/10/2013,552.00,1267036,A000958,ESPO
North West Leicestershire District Council,31UH,PROPCL,Property Services,Property Commercial Lettings,Property Commercial Lettings,Internal Decorations,23/10/2013,552.50,1268651,A003371,Urban Planters Leicestershire (limited)
North West Leicestershire District Council,31UH,EEHL,Environmental Health,Environmental Health & Licensing,Environmental Health & Licensing,Baits & Poisons,23/10/2013,553.75,1268661,A000890,Killgerm Chemicals Ltd
North West Leicestershire District Council,31UH,HRAHRM,Housing Repairs,HRA Housing Repairs & Maintenance,HRA Housing Repairs & Maintenance,Schedule of Rates - repair and Maintenance,23/10/2013,556.48,1268955,A031787,Laker BMS Ltd
North West Leicestershire District Council,31UH,ESS,Street Management,Environment - Street Scene,Environment - Street Scene,Routine Ground Maintenance,09/10/2013,558.00,1266764,A039764,EPT SERVICES
North West Leicestershire District Council,31UH,HLBC,Leisure Centres,Hermitage Bar & Catering,Hermitage Bar & Catering,Catering Provisions,09/10/2013,559.46,1267154,A001264,Palmer Harvey Mclane Ltd
North West Leicestershire District Council,31UH,HRAHRM,Housing Repairs,HRA Housing Repairs & Maintenance,HRA Housing Repairs & Maintenance,external Painting ,09/10/2013,560.73,1267288,A035827,Novus Property Solutions Limited
North West Leicestershire District Council,31UH,HRAHRM,Housing Repairs,HRA Housing Repairs & Maintenance,HRA Housing Repairs & Maintenance,Schedule of Rates - repair and Maintenance,23/10/2013,566.00,1268888,A031787,Laker BMS Ltd
North West Leicestershire District Council,31UH,ICT,Information Technology,ICT Services,ICT Services,Consultants Fees,02/10/2013,573.60,1266931,A000770,Hinckley & Bosworth Borough Council
North West Leicestershire District Council,31UH,HRAHRM,Housing Repairs,HRA Housing Repairs & Maintenance,HRA Housing Repairs & Maintenance,external Painting ,09/10/2013,579.43,1267299,A035827,Novus Property Solutions Limited
North West Leicestershire District Council,31UH,HR,Corporate Director,Human Resources,Human Resources,Criminal Records Bureau,08/10/2013,580.00,1267910,A027625,The Disclosure & Barring Service
North West Leicestershire District Council,31UH,HPLC,Leisure Centres,Hood Park Leisure Centre,Hood Park Leisure Centre,Telephone Charge / Rental,09/10/2013,580.83,1267143,A035373,Virgin Media Business
North West Leicestershire District Council,31UH,CULTEV,Leisure & Culture,Cultural Services Arts & Events,Cultural Services Arts & Events,Town Centre Management - Christmas Dec,16/10/2013,587.50,1268068,A040879,Sunshine Events
North West Leicestershire District Council,31UH,ESS,Street Management,Environment - Street Scene,Environment - Street Scene,Operational Equipment,02/10/2013,592.30,1266518,A039764,EPT SERVICES
North West Leicestershire District Council,31UH,HLC,Leisure Centres,Hermitage Leisure Centre,Hermitage Leisure Centre,Telephone Charge / Rental,02/10/2013,592.50,1266615,A000233,British Telecommunications Plc
North West Leicestershire District Council,31UH,HRAHRM,Housing Repairs,HRA Housing Repairs & Maintenance,HRA Housing Repairs & Maintenance,external Painting ,09/10/2013,599.19,1267188,A035827,Novus Property Solutions Limited
North West Leicestershire District Council,31UH,ESS,Street Management,Environment - Street Scene,Environment - Street Scene,Agency Staff,16/10/2013,602.75,1267993,A031571,HBHC Synergy Ltd
North West Leicestershire District Council,31UH,HPLC,Leisure Centres,Hood Park Leisure Centre,Hood Park Leisure Centre,Electricity,02/10/2013,605.43,1266686,A002200,L.C.C.Ivanhoe College
North West Leicestershire District Council,31UH,HRAHRM,Housing Repairs,HRA Housing Repairs & Maintenance,HRA Housing Repairs & Maintenance,Schedule of Rates - repair and Maintenance,23/10/2013,608.65,1268859,A031787,Laker BMS Ltd
North West Leicestershire District Council,31UH,HRAHRM,Housing Repairs,HRA Housing Repairs & Maintenance,HRA Housing Repairs & Maintenance,external Painting ,09/10/2013,616.81,1267211,A035827,Novus Property Solutions Limited
North West Leicestershire District Council,31UH,HRAHRM,Housing Repairs,HRA Housing Repairs & Maintenance,HRA Housing Repairs & Maintenance,external Painting ,09/10/2013,616.81,1267214,A035827,Novus Property Solutions Limited
North West Leicestershire District Council,31UH,HRAHRM,Housing Repairs,HRA Housing Repairs & Maintenance,HRA Housing Repairs & Maintenance,Schedule of Rates - repair and Maintenance,09/10/2013,621.00,1267635,A031787,Laker BMS Ltd
North West Leicestershire District Council,31UH,HRAHRM,Housing Repairs,HRA Housing Repairs & Maintenance,HRA Housing Repairs & Maintenance,Schedule of Rates - repair and Maintenance,23/10/2013,632.50,1268951,A031787,Laker BMS Ltd
North West Leicestershire District Council,31UH,HRAHRM,Housing Repairs,HRA Housing Repairs & Maintenance,HRA Housing Repairs & Maintenance,Schedule of Rates - repair and Maintenance,02/10/2013,637.10,1266815,A031787,Laker BMS Ltd
North West Leicestershire District Council,31UH,ENOT,Street Management,Environment Transport,Environment Transport,Repairs - Parts,09/10/2013,638.89,1267081,A017895,Geesink Norba Limited
North West Leicestershire District Council,31UH,HRAHRM,Housing Repairs,HRA Housing Repairs & Maintenance,HRA Housing Repairs & Maintenance,external Painting ,09/10/2013,640.84,1267283,A035827,Novus Property Solutions Limited
North West Leicestershire District Council,31UH,ENOT,Street Management,Environment Transport,Environment Transport,Purchases,16/10/2013,641.86,1268140,A034942,Pace Petroleum Ltd
North West Leicestershire District Council,31UH,HRAHRM,Housing Repairs,HRA Housing Repairs & Maintenance,HRA Housing Repairs & Maintenance,Schedule of Rates - repair and Maintenance,23/10/2013,644.00,1268876,A031787,Laker BMS Ltd
North West Leicestershire District Council,31UH,PROPCL,Property Services,Property Commercial Lettings,Property Commercial Lettings,Telephones,16/10/2013,651.34,1268110,A000233,British Telecommunications Plc
North West Leicestershire District Council,31UH,HRAHRM,Housing Repairs,HRA Housing Repairs & Maintenance,HRA Housing Repairs & Maintenance,external Painting ,09/10/2013,657.93,1267184,A035827,Novus Property Solutions Limited
North West Leicestershire District Council,31UH,ENOT,Street Management,Environment Transport,Environment Transport,General Materials,02/10/2013,658.00,1266722,A034991,Sherriff Amenity
North West Leicestershire District Council,31UH,HRAHRM,Housing Repairs,HRA Housing Repairs & Maintenance,HRA Housing Repairs & Maintenance,Schedule of Rates - repair and Maintenance,16/10/2013,662.40,1268162,A031787,Laker BMS Ltd
North West Leicestershire District Council,31UH,HRAHRM,Housing Repairs,HRA Housing Repairs & Maintenance,HRA Housing Repairs & Maintenance,Schedule of Rates - repair and Maintenance,02/10/2013,667.00,1266900,A031787,Laker BMS Ltd
North West Leicestershire District Council,31UH,HRAHRM,Housing Repairs,HRA Housing Repairs & Maintenance,HRA Housing Repairs & Maintenance,Schedule of Rates - repair and Maintenance,16/10/2013,668.90,1268161,A031787,Laker BMS Ltd
North West Leicestershire District Council,31UH,ESS,Street Management,Environment - Street Scene,Environment - Street Scene,Welfare Funerals,16/10/2013,673.00,1268114,A023141,The Co-operative Funeralcare
North West Leicestershire District Council,31UH,ENOT,Street Management,Environment Transport,Environment Transport,General Materials,02/10/2013,674.10,1266698,A017624,BPI Recycled Products
North West Leicestershire District Council,31UH,NACCS,Neighbourhoods & Communities,N & C Community Safety,N & C Community Safety,Extended Services,09/10/2013,675.35,1267165,A001988,Hays Construction & Property
North West Leicestershire District Council,31UH,EEHL,Environmental Health,Environmental Health & Licensing,Environmental Health & Licensing,Vet Inspection,23/10/2013,675.35,1268660,A033670,Eville And Jones Limited
North West Leicestershire District Council,31UH,HRAHRM,Housing Repairs,HRA Housing Repairs & Maintenance,HRA Housing Repairs & Maintenance,Schedule of Rates - repair and Maintenance,16/10/2013,675.58,1268220,A031787,Laker BMS Ltd
North West Leicestershire District Council,31UH,HRAHM,Housing,HRA Housing Management,HRA Housing Management,Miscellaneous,23/10/2013,680.00,1268676,A039091,Energico
North West Leicestershire District Council,31UH,HRAHRM,Housing Repairs,HRA Housing Repairs & Maintenance,HRA Housing Repairs & Maintenance,Environmental Waste,16/10/2013,680.60,1268157,A031086,Premier Waste and Recycling
North West Leicestershire District Council,31UH,HRAHRM,Housing Repairs,HRA Housing Repairs & Maintenance,HRA Housing Repairs & Maintenance,Schedule of Rates - repair and Maintenance,23/10/2013,682.02,1268903,A031787,Laker BMS Ltd
North West Leicestershire District Council,31UH,HRAHRM,Housing Repairs,HRA Housing Repairs & Maintenance,HRA Housing Repairs & Maintenance,adhoc repair and replacement of doors,09/10/2013,685.75,1267674,A038041,I G Doors Limited
North West Leicestershire District Council,31UH,HRAHRM,Housing Repairs,HRA Housing Repairs & Maintenance,HRA Housing Repairs & Maintenance,adhoc repair and replacement of doors,09/10/2013,685.75,1267676,A038041,I G Doors Limited
North West Leicestershire District Council,31UH,HRAHRM,Housing Repairs,HRA Housing Repairs & Maintenance,HRA Housing Repairs & Maintenance,adhoc repair and replacement of doors,23/10/2013,685.75,1268975,A038041,I G Doors Limited
North West Leicestershire District Council,31UH,LCM,Leisure & Culture,Leisure & Cult Mangt,Leisure & Cult Mangt,Contract Payments (Other) Ext,09/10/2013,697.68,1267053,A001468,Severn Trent Water Limited
North West Leicestershire District Council,31UH,NACCS,Neighbourhoods & Communities,N & C Community Safety,N & C Community Safety,Anti Social Behaviour,16/10/2013,700.00,1268064,A000950,Leicestershire County Council
North West Leicestershire District Council,31UH,HRAHRM,Housing Repairs,HRA Housing Repairs & Maintenance,HRA Housing Repairs & Maintenance,external Painting ,09/10/2013,703.86,1267171,A035827,Novus Property Solutions Limited
North West Leicestershire District Council,31UH,HRAHRM,Housing Repairs,HRA Housing Repairs & Maintenance,HRA Housing Repairs & Maintenance,Environmental Waste,16/10/2013,704.55,1268278,A031086,Premier Waste and Recycling
North West Leicestershire District Council,31UH,HLC,Leisure Centres,Hermitage Leisure Centre,Hermitage Leisure Centre,Water Treatment,09/10/2013,719.49,1267072,A001591,Stowlin Ltd
North West Leicestershire District Council,31UH,ENOT,Street Management,Environment Transport,Environment Transport,Non Scheduled Maintenance - Parts,09/10/2013,720.00,1267010,A039650,Andrew Page Ltd
North West Leicestershire District Council,31UH,HRAHRM,Housing Repairs,HRA Housing Repairs & Maintenance,HRA Housing Repairs & Maintenance,external Painting ,09/10/2013,726.82,1267208,A035827,Novus Property Solutions Limited
North West Leicestershire District Council,31UH,HRAHRM,Housing Repairs,HRA Housing Repairs & Maintenance,HRA Housing Repairs & Maintenance,external Painting ,09/10/2013,726.82,1267209,A035827,Novus Property Solutions Limited
North West Leicestershire District Council,31UH,HLBC,Leisure Centres,Hermitage Bar & Catering,Hermitage Bar & Catering,Catering Provisions,23/10/2013,729.58,1268749,A001264,Palmer Harvey Mclane Ltd
North West Leicestershire District Council,31UH,ICT,Information Technology,ICT Services,ICT Services,Admin Equipment - Maintenance,02/10/2013,734.00,1266728,A034658,Globalsign Ltd
North West Leicestershire District Council,31UH,HRAHRM,Housing Repairs,HRA Housing Repairs & Maintenance,HRA Housing Repairs & Maintenance,Environmental Waste,16/10/2013,738.11,1268159,A031086,Premier Waste and Recycling
North West Leicestershire District Council,31UH,HRAHRM,Housing Repairs,HRA Housing Repairs & Maintenance,HRA Housing Repairs & Maintenance,Schedule of Rates - repair and Maintenance,23/10/2013,747.77,1268913,A031787,Laker BMS Ltd
North West Leicestershire District Council,31UH,HRAHRM,Housing Repairs,HRA Housing Repairs & Maintenance,HRA Housing Repairs & Maintenance,Adhoc repair and replacement of windows,09/10/2013,756.35,1267663,A036741,SBP Limited (Trading as Plastal & Permadoor)
North West Leicestershire District Council,31UH,HRAHRM,Housing Repairs,HRA Housing Repairs & Maintenance,HRA Housing Repairs & Maintenance,Schedule of Rates - repair and Maintenance,23/10/2013,767.05,1268950,A031787,Laker BMS Ltd
North West Leicestershire District Council,31UH,HRAHRM,Housing Repairs,HRA Housing Repairs & Maintenance,HRA Housing Repairs & Maintenance,external Painting ,09/10/2013,770.08,1267242,A035827,Novus Property Solutions Limited
North West Leicestershire District Council,31UH,HRAHRM,Housing Repairs,HRA Housing Repairs & Maintenance,HRA Housing Repairs & Maintenance,Schedule of Rates - repair and Maintenance,23/10/2013,772.80,1268983,A031787,Laker BMS Ltd
North West Leicestershire District Council,31UH,HRAHRM,Housing Repairs,HRA Housing Repairs & Maintenance,HRA Housing Repairs & Maintenance,Schedule of Rates - repair and Maintenance,02/10/2013,774.33,1266858,A031787,Laker BMS Ltd
North West Leicestershire District Council,31UH,HRAHRM,Housing Repairs,HRA Housing Repairs & Maintenance,HRA Housing Repairs & Maintenance,Schedule of Rates - repair and Maintenance,02/10/2013,777.75,1266913,A031787,Laker BMS Ltd
North West Leicestershire District Council,31UH,ESS,Street Management,Environment - Street Scene,Environment - Street Scene,Computer Software Maintenance,06/11/2013,777.80,1268088,A024896,Imperial Civil Enforcement Solutions
North West Leicestershire District Council,31UH,HRAHRM,Housing Repairs,HRA Housing Repairs & Maintenance,HRA Housing Repairs & Maintenance,Schedule of Rates - repair and Maintenance,23/10/2013,782.00,1269010,A031787,Laker BMS Ltd
North West Leicestershire District Council,31UH,ENOP,Street Management,Environment Parks,Environment Parks,Asset Protection,09/10/2013,786.64,1267025,A002693,Leicestershire County Counc
North West Leicestershire District Council,31UH,HRAHM,Housing,HRA Housing Management,HRA Housing Management,Annual Report To Tenants,16/10/2013,802.00,1268040,A037241,Taylor Bloxham Ltd
North West Leicestershire District Council,31UH,HRAHRM,Housing Repairs,HRA Housing Repairs & Maintenance,HRA Housing Repairs & Maintenance,Environmental Waste,23/10/2013,804.48,1268833,A031086,Premier Waste and Recycling
North West Leicestershire District Council,31UH,ENOT,Street Management,Environment Transport,Environment Transport,Non Scheduled Maintenance - Parts,16/10/2013,805.00,1267989,A040486,Trade Price Windscreens Ltd
North West Leicestershire District Council,31UH,HLBC,Leisure Centres,Hermitage Bar & Catering,Hermitage Bar & Catering,Catering Provisions,02/10/2013,814.84,1266694,A001264,Palmer Harvey Mclane Ltd
North West Leicestershire District Council,31UH,HPLC,Leisure Centres,Hood Park Leisure Centre,Hood Park Leisure Centre,General Repairs,23/10/2013,817.97,1268711,A000969,J P Lennard Ltd
North West Leicestershire District Council,31UH,HRAHRM,Housing Repairs,HRA Housing Repairs & Maintenance,HRA Housing Repairs & Maintenance,external Painting ,09/10/2013,823.48,1267245,A035827,Novus Property Solutions Limited
North West Leicestershire District Council,31UH,ENOT,Street Management,Environment Transport,Environment Transport,Licences - Road Fund Licence,09/10/2013,825.00,1267083,A008559,Post Office Limited
North West Leicestershire District Council,31UH,ENOT,Street Management,Environment Transport,Environment Transport,Repairs - Parts,16/10/2013,841.59,1267941,A017895,Geesink Norba Limited
North West Leicestershire District Council,31UH,HRAHRM,Housing Repairs,HRA Housing Repairs & Maintenance,HRA Housing Repairs & Maintenance,Environmental Waste,02/10/2013,854.45,1266833,A031086,Premier Waste and Recycling
North West Leicestershire District Council,31UH,HLC,Leisure Centres,Hermitage Leisure Centre,Hermitage Leisure Centre,General Repairs,16/10/2013,855.75,1268094,A040665,Aidservice Ltd
North West Leicestershire District Council,31UH,HRAHRM,Housing Repairs,HRA Housing Repairs & Maintenance,HRA Housing Repairs & Maintenance,Schedule of Rates - repair and Maintenance,02/10/2013,869.50,1266856,A031787,Laker BMS Ltd
North West Leicestershire District Council,31UH,HRAHRM,Housing Repairs,HRA Housing Repairs & Maintenance,HRA Housing Repairs & Maintenance,external Painting ,09/10/2013,870.47,1267212,A035827,Novus Property Solutions Limited
North West Leicestershire District Council,31UH,NACCS,Neighbourhoods & Communities,N & C Community Safety,N & C Community Safety,Extended Services,09/10/2013,875.00,1267139,A039090,Safe Start-Home Safety
North West Leicestershire District Council,31UH,HRAHRM,Housing Repairs,HRA Housing Repairs & Maintenance,HRA Housing Repairs & Maintenance,Protective Clothing,02/10/2013,880.33,1266790,A009933,Westbury Industrial Supplies Limited
North West Leicestershire District Council,31UH,HRAHRM,Housing Repairs,HRA Housing Repairs & Maintenance,HRA Housing Repairs & Maintenance,external Painting ,09/10/2013,882.22,1267256,A035827,Novus Property Solutions Limited
North West Leicestershire District Council,31UH,ECCTV,Planning & Development,Environment - Town Centre/CCTV,Environment - Town Centre/CCTV,Electricity,16/10/2013,884.68,1268041,A030266,Southern Electric
North West Leicestershire District Council,31UH,PROPFM,Property Services,Property Facilities Management,Property Facilities Management,General Repairs,02/10/2013,889.43,1266649,A033342,J Tomlinson Ltd
North West Leicestershire District Council,31UH,ICT,Information Technology,ICT Services,ICT Services,Admin Equipment - Maintenance,16/10/2013,893.50,1268131,A023640,Nviron Limited
North West Leicestershire District Council,31UH,CP,Communications,Corporate - Communications,Corporate - Communications,Licences,09/10/2013,897.00,1265590,A011217,The Copyright Licensing Agency
North West Leicestershire District Council,31UH,HRAHRM,Housing Repairs,HRA Housing Repairs & Maintenance,HRA Housing Repairs & Maintenance,external Painting ,09/10/2013,898.35,1267321,A035827,Novus Property Solutions Limited
North West Leicestershire District Council,31UH,EXCH,Finance,Exchequer Services,Exchequer Services,Computing,16/10/2013,916.34,1267943,A010859,Selima Limited
North West Leicestershire District Council,31UH,HRAHRM,Housing Repairs,HRA Housing Repairs & Maintenance,HRA Housing Repairs & Maintenance,Schedule of Rates - repair and Maintenance,23/10/2013,924.01,1268869,A031787,Laker BMS Ltd
North West Leicestershire District Council,31UH,HRAHRM,Housing Repairs,HRA Housing Repairs & Maintenance,HRA Housing Repairs & Maintenance,external Painting ,09/10/2013,927.08,1267306,A035827,Novus Property Solutions Limited
North West Leicestershire District Council,31UH,EXCH,Finance,Exchequer Services,Exchequer Services,Computing,02/10/2013,940.85,1266648,A010859,Selima Limited
North West Leicestershire District Council,31UH,HRAHRM,Housing Repairs,HRA Housing Repairs & Maintenance,HRA Housing Repairs & Maintenance,external Painting ,09/10/2013,942.03,1267261,A035827,Novus Property Solutions Limited
North West Leicestershire District Council,31UH,HRAHRM,Housing Repairs,HRA Housing Repairs & Maintenance,HRA Housing Repairs & Maintenance,Schedule of Rates - repair and Maintenance,23/10/2013,944.29,1268897,A031787,Laker BMS Ltd
North West Leicestershire District Council,31UH,EES,Environmental Health,Environmental Services,Environmental Services,Grants,23/10/2013,950.00,1268802,A027781,J Rennocks & Son Ltd
North West Leicestershire District Council,31UH,ESS,Street Management,Environment - Street Scene,Environment - Street Scene,Subscriptions,16/10/2013,950.00,1267990,A039987,Mallard Consultancy Ltd
North West Leicestershire District Council,31UH,ICT,Information Technology,ICT Services,ICT Services,Admin Equipment - Maintenance,09/10/2013,950.00,1267004,A034157,Idox Software Ltd
North West Leicestershire District Council,31UH,ICT,Information Technology,ICT Services,ICT Services,Admin Equipment - Maintenance,09/10/2013,950.00,1267005,A034157,Idox Software Ltd
North West Leicestershire District Council,31UH,ICT,Information Technology,ICT Services,ICT Services,Admin Equipment - Maintenance,16/10/2013,950.00,1268115,A034157,Idox Software Ltd
North West Leicestershire District Council,31UH,HRAHM,Housing,HRA Housing Management,HRA Housing Management,Miscellaneous,23/10/2013,952.00,1268677,A039091,Energico
North West Leicestershire District Council,31UH,ENOT,Street Management,Environment Transport,Environment Transport,Repairs - Parts,09/10/2013,956.05,1267160,A001445,Scarab Sweepers Limited
North West Leicestershire District Council,31UH,HPLC,Leisure Centres,Hood Park Leisure Centre,Hood Park Leisure Centre,Service Contracts,02/10/2013,958.00,1266683,A022180,Complete Cooling Services Ltd
North West Leicestershire District Council,31UH,PROPCL,Property Services,Property Commercial Lettings,Property Commercial Lettings,General Repairs,16/10/2013,961.00,1268118,A030887,T Denman & Sons (Melton Mowbray) Ltd
North West Leicestershire District Council,31UH,HLC,Leisure Centres,Hermitage Leisure Centre,Hermitage Leisure Centre,General Repairs,02/10/2013,970.00,1265867,A038828,D Walker
North West Leicestershire District Council,31UH,HRAHRM,Housing Repairs,HRA Housing Repairs & Maintenance,HRA Housing Repairs & Maintenance,Schedule of Rates - repair and Maintenance,02/10/2013,977.00,1266861,A031787,Laker BMS Ltd
North West Leicestershire District Council,31UH,HLC,Leisure Centres,Hermitage Leisure Centre,Hermitage Leisure Centre,Measham LC Lifestyle DD,16/10/2013,979.17,1268555,A027454,Measham Leisure Centre
North West Leicestershire District Council,31UH,ENOT,Street Management,Environment Transport,Environment Transport,General Repairs,02/10/2013,980.08,1266721,A000438,Cuckoo Gap Limited
North West Leicestershire District Council,31UH,ESS,Street Management,Environment - Street Scene,Environment - Street Scene,Agency Staff,16/10/2013,985.50,1267994,A031571,HBHC Synergy Ltd
North West Leicestershire District Council,31UH,PROPFM,Property Services,Property Facilities Management,Property Facilities Management,General Repairs,02/10/2013,987.93,1266634,A040690,ACE Environmental Engineering Ltd
North West Leicestershire District Council,31UH,HLC,Leisure Centres,Hermitage Leisure Centre,Hermitage Leisure Centre,Maintenance/Office Expenditure,23/10/2013,989.00,1268688,A036300,Hytrac Lifts Limited
North West Leicestershire District Council,31UH,LDLS,Legal & Democratic,Legal Services,Legal Services,Interim Support,16/10/2013,"1,000.00",1268135,A034295,Leicester City Council Accounts Receivable
North West Leicestershire District Council,31UH,ENOT,Street Management,Environment Transport,Environment Transport,Repairs - Parts,23/10/2013,"1,000.00",1268615,A035120,Sherwood Truck and Van Limited
North West Leicestershire District Council,31UH,ESS,Street Management,Environment - Street Scene,Environment - Street Scene,Subscriptions,16/10/2013,"1,000.00",1267991,A000478,Derby City Council
North West Leicestershire District Council,31UH,EDC,Planning & Development,Environment - Development Control,Environment - Development Control,Advertising,09/10/2013,"1,004.43",1267016,A001395,Euro RSCG People T/A Havas People Ltd
North West Leicestershire District Council,31UH,HRAHRM,Housing Repairs,HRA Housing Repairs & Maintenance,HRA Housing Repairs & Maintenance,external Painting ,09/10/2013,"1,015.73",1267308,A035827,Novus Property Solutions Limited
North West Leicestershire District Council,31UH,HRAHRM,Housing Repairs,HRA Housing Repairs & Maintenance,HRA Housing Repairs & Maintenance,external Painting ,09/10/2013,"1,015.73",1267309,A035827,Novus Property Solutions Limited
North West Leicestershire District Council,31UH,HRAHRM,Housing Repairs,HRA Housing Repairs & Maintenance,HRA Housing Repairs & Maintenance,Schedule of Rates - repair and Maintenance,23/10/2013,"1,017.78",1268937,A031787,Laker BMS Ltd
North West Leicestershire District Council,31UH,HRAHRM,Housing Repairs,HRA Housing Repairs & Maintenance,HRA Housing Repairs & Maintenance,external Painting ,09/10/2013,"1,025.34",1267231,A035827,Novus Property Solutions Limited
North West Leicestershire District Council,31UH,HS,Housing Strategy,Community - Housing Strategy,Community - Housing Strategy,Grants,23/10/2013,"1,030.00",1268730,A006912,Midlands Rural Housing Association
North West Leicestershire District Council,31UH,HPLC,Leisure Centres,Hood Park Leisure Centre,Hood Park Leisure Centre,Water Treatment,09/10/2013,"1,048.08",1266680,A001591,Stowlin Ltd
North West Leicestershire District Council,31UH,ENOT,Street Management,Environment Transport,Environment Transport,Transport Costs - Tyres,16/10/2013,"1,050.00",1268122,A034071,S & B Tyres Limited
North West Leicestershire District Council,31UH,HRAHRM,Housing Repairs,HRA Housing Repairs & Maintenance,HRA Housing Repairs & Maintenance,external Painting ,09/10/2013,"1,050.98",1267255,A035827,Novus Property Solutions Limited
North West Leicestershire District Council,31UH,HRAHRM,Housing Repairs,HRA Housing Repairs & Maintenance,HRA Housing Repairs & Maintenance,Prepainting,09/10/2013,"1,068.15",1267361,A035827,Novus Property Solutions Limited
North West Leicestershire District Council,31UH,HRAHRM,Housing Repairs,HRA Housing Repairs & Maintenance,HRA Housing Repairs & Maintenance,Schedule of Rates - repair and Maintenance,23/10/2013,"1,078.33",1268911,A031787,Laker BMS Ltd
North West Leicestershire District Council,31UH,EXCH,Finance,Exchequer Services,Exchequer Services,Collection - Cash,23/10/2013,"1,095.77",1268668,A004468,Kings Armoured Security Services Ltd
North West Leicestershire District Council,31UH,EXCH,Finance,Exchequer Services,Exchequer Services,Collection - Cash,23/10/2013,"1,095.77",1268668,A004468,Kings Armoured Security Services Ltd
North West Leicestershire District Council,31UH,HRAHRM,Housing Repairs,HRA Housing Repairs & Maintenance,HRA Housing Repairs & Maintenance,Schedule of Rates - repair and Maintenance,16/10/2013,"1,122.31",1268190,A031787,Laker BMS Ltd
North West Leicestershire District Council,31UH,HRAHRM,Housing Repairs,HRA Housing Repairs & Maintenance,HRA Housing Repairs & Maintenance,Building Services ,23/10/2013,"1,144.54",1268970,A033342,J Tomlinson Ltd
North West Leicestershire District Council,31UH,HRAHRM,Housing Repairs,HRA Housing Repairs & Maintenance,HRA Housing Repairs & Maintenance,external Painting ,09/10/2013,"1,189.83",1267217,A035827,Novus Property Solutions Limited
North West Leicestershire District Council,31UH,HRAHRM,Housing Repairs,HRA Housing Repairs & Maintenance,HRA Housing Repairs & Maintenance,Schedule of Rates - repair and Maintenance,02/10/2013,"1,200.00",1266823,A031787,Laker BMS Ltd
North West Leicestershire District Council,31UH,HRAHRM,Housing Repairs,HRA Housing Repairs & Maintenance,HRA Housing Repairs & Maintenance,Schedule of Rates - repair and Maintenance,02/10/2013,"1,200.00",1266886,A031787,Laker BMS Ltd
North West Leicestershire District Council,31UH,HRAHRM,Housing Repairs,HRA Housing Repairs & Maintenance,HRA Housing Repairs & Maintenance,Schedule of Rates - repair and Maintenance,02/10/2013,"1,247.83",1266845,A031787,Laker BMS Ltd
North West Leicestershire District Council,31UH,HRAHRM,Housing Repairs,HRA Housing Repairs & Maintenance,HRA Housing Repairs & Maintenance,Schedule of Rates - repair and Maintenance,23/10/2013,"1,249.61",1268987,A031787,Laker BMS Ltd
North West Leicestershire District Council,31UH,HRAHRM,Housing Repairs,HRA Housing Repairs & Maintenance,HRA Housing Repairs & Maintenance,external Painting ,09/10/2013,"1,252.31",1267216,A035827,Novus Property Solutions Limited
North West Leicestershire District Council,31UH,HRAHRM,Housing Repairs,HRA Housing Repairs & Maintenance,HRA Housing Repairs & Maintenance,Building Services ,23/10/2013,"1,266.40",1268967,A033342,J Tomlinson Ltd
North West Leicestershire District Council,31UH,CULTEV,Leisure & Culture,Cultural Services Arts & Events,Cultural Services Arts & Events,Grants - East Midlands Arts,02/10/2013,"1,270.00",1266703,A000950,Leicestershire County Council
North West Leicestershire District Council,31UH,PROPCL,Property Services,Property Commercial Lettings,Property Commercial Lettings,General Repairs,23/10/2013,"1,283.20",1268725,A033342,J Tomlinson Ltd
North West Leicestershire District Council,31UH,HRAHRM,Housing Repairs,HRA Housing Repairs & Maintenance,HRA Housing Repairs & Maintenance,Schedule of Rates - repair and Maintenance,09/10/2013,"1,288.00",1267625,A031787,Laker BMS Ltd
North West Leicestershire District Council,31UH,CHEX,Chief Exec,Chief Executive,Chief Executive,External Legal Fees & Advice,16/10/2013,"1,289.11",1267983,A039356,Broadsted Associates Ltd
North West Leicestershire District Council,31UH,HRAHRM,Housing Repairs,HRA Housing Repairs & Maintenance,HRA Housing Repairs & Maintenance,Schedule of Rates - repair and Maintenance,23/10/2013,"1,305.19",1268958,A031787,Laker BMS Ltd
North West Leicestershire District Council,31UH,LCM,Leisure & Culture,Leisure & Cult Mangt,Leisure & Cult Mangt,Service Charges,09/10/2013,"1,330.25",1267598,A000950,Leicestershire County Council
North West Leicestershire District Council,31UH,HLC,Leisure Centres,Hermitage Leisure Centre,Hermitage Leisure Centre,Water Charges (Metered),16/10/2013,"1,330.25",1268059,A001468,Severn Trent Water Limited
North West Leicestershire District Council,31UH,HPLC,Leisure Centres,Hood Park Leisure Centre,Hood Park Leisure Centre,Electricity,16/10/2013,"1,339.85",1268037,A030266,Southern Electric
North West Leicestershire District Council,31UH,ESS,Street Management,Environment - Street Scene,Environment - Street Scene,Contract Payments (Other) Ext,02/10/2013,"1,341.49",1265753,A008325,Palmar & Associates Ltd
North West Leicestershire District Council,31UH,EEHL,Environmental Health,Environmental Health & Licensing,Environmental Health & Licensing,Stray Dog Service,23/10/2013,"1,352.26",1268590,A000385,College Garth Boarding Kennels
North West Leicestershire District Council,31UH,HRAHRM,Housing Repairs,HRA Housing Repairs & Maintenance,HRA Housing Repairs & Maintenance,Schedule of Rates - repair and Maintenance,23/10/2013,"1,357.97",1268870,A031787,Laker BMS Ltd
North West Leicestershire District Council,31UH,PROPFM,Property Services,Property Facilities Management,Property Facilities Management,Expenditure against earmarked reserve,23/10/2013,"1,372.00",1268690,A028261,TECSERV UK LIMITED
North West Leicestershire District Council,31UH,ECP,Planning & Development,Environment Community Planning,Environment Community Planning,Tree Officer,16/10/2013,"1,372.92",1268560,A000770,Hinckley & Bosworth Borough Council
North West Leicestershire District Council,31UH,HRAHRM,Housing Repairs,HRA Housing Repairs & Maintenance,HRA Housing Repairs & Maintenance,Schedule of Rates - repair and Maintenance,02/10/2013,"1,373.48",1266851,A031787,Laker BMS Ltd
North West Leicestershire District Council,31UH,ECCTV,Planning & Development,Environment - Town Centre/CCTV,Environment - Town Centre/CCTV,Town Centre Regeneration,16/10/2013,"1,398.50",1267950,A040519,Coalville Town Team Ltd
North West Leicestershire District Council,31UH,HPLC,Leisure Centres,Hood Park Leisure Centre,Hood Park Leisure Centre,Water Charges (Metered),16/10/2013,"1,410.97",1268038,A001468,Severn Trent Water Limited
North West Leicestershire District Council,31UH,HRAHRM,Housing Repairs,HRA Housing Repairs & Maintenance,HRA Housing Repairs & Maintenance,Schedule of Rates - repair and Maintenance,02/10/2013,"1,421.30",1266835,A031787,Laker BMS Ltd
North West Leicestershire District Council,31UH,LDLS,Legal & Democratic,Legal Services,Legal Services,Legal & Professional Services,23/10/2013,"1,431.00",1268634,A031366,Bevan Brittan
North West Leicestershire District Council,31UH,HPLC,Leisure Centres,Hood Park Leisure Centre,Hood Park Leisure Centre,General Repairs,09/10/2013,"1,458.00",1267042,A022180,Complete Cooling Services Ltd
North West Leicestershire District Council,31UH,REVS,Finance,Revenues,Revenues,Expenditure against earmarked reserve,23/10/2013,"1,500.00",1268662,A000770,Hinckley & Bosworth Borough Council
North West Leicestershire District Council,31UH,PROPCL,Property Services,Property Commercial Lettings,Property Commercial Lettings,General Repairs,16/10/2013,"1,574.96",1268119,A030887,T Denman & Sons (Melton Mowbray) Ltd
North West Leicestershire District Council,31UH,HRAHRM,Housing Repairs,HRA Housing Repairs & Maintenance,HRA Housing Repairs & Maintenance,Building Services ,23/10/2013,"1,590.23",1268971,A033342,J Tomlinson Ltd
North West Leicestershire District Council,31UH,HRAHRM,Housing Repairs,HRA Housing Repairs & Maintenance,HRA Housing Repairs & Maintenance,Environmental Waste,16/10/2013,"1,600.00",1268280,A031086,Premier Waste and Recycling
North West Leicestershire District Council,31UH,EES,Environmental Health,Environmental Services,Environmental Services,Grants,09/10/2013,"1,601.00",1267599,A038469,Leicestershire County Council
North West Leicestershire District Council,31UH,ENOP,Street Management,Environment Parks,Environment Parks,General Materials,16/10/2013,"1,606.00",1268079,A022505,Cornish King Bulb Growers
North West Leicestershire District Council,31UH,PROPFM,Property Services,Property Facilities Management,Property Facilities Management,General Repairs,02/10/2013,"1,621.00",1265514,A037013,Rentokil Initial UK Limited
North West Leicestershire District Council,31UH,HRAHRM,Housing Repairs,HRA Housing Repairs & Maintenance,HRA Housing Repairs & Maintenance,Schedule of Rates - repair and Maintenance,09/10/2013,"1,638.95",1267626,A031787,Laker BMS Ltd
North West Leicestershire District Council,31UH,HRAHRM,Housing Repairs,HRA Housing Repairs & Maintenance,HRA Housing Repairs & Maintenance,Schedule of Rates - repair and Maintenance,23/10/2013,"1,662.50",1269009,A031787,Laker BMS Ltd
North West Leicestershire District Council,31UH,HLC,Leisure Centres,Hermitage Leisure Centre,Hermitage Leisure Centre,Measham LC Lifestyle DD,09/10/2013,"1,666.67",1267063,A027454,Measham Leisure Centre
North West Leicestershire District Council,31UH,ENOT,Street Management,Environment Transport,Environment Transport,Transport Costs - Tyres,02/10/2013,"1,700.00",1266713,A033268,Bandvulc Tyres Ltd
North West Leicestershire District Council,31UH,HRAHRM,Housing Repairs,HRA Housing Repairs & Maintenance,HRA Housing Repairs & Maintenance,Schedule of Rates - repair and Maintenance,23/10/2013,"1,748.00",1268948,A031787,Laker BMS Ltd
North West Leicestershire District Council,31UH,PROPFM,Property Services,Property Facilities Management,Property Facilities Management,General Repairs,09/10/2013,"1,814.40",1267001,A033342,J Tomlinson Ltd
North West Leicestershire District Council,31UH,ICT,Information Technology,ICT Services,ICT Services,Admin Equipment - Maintenance,16/10/2013,"1,824.58",1268063,A032826,Freedom Communications (UK) Ltd
North West Leicestershire District Council,31UH,ICT,Information Technology,ICT Services,ICT Services,Admin Equipment - Maintenance,02/10/2013,"1,824.58",1266765,A032826,Freedom Communications (UK) Ltd
North West Leicestershire District Council,31UH,HS,Housing Strategy,Community - Housing Strategy,Community - Housing Strategy,Other Services,02/10/2013,"1,850.00",1266763,A040857,Now Medical 
North West Leicestershire District Council,31UH,ENOWM,Street Management,Environment Waste Management,Environment Waste Management,General Materials,02/10/2013,"1,850.00",1266791,A001253,ESE Limited
North West Leicestershire District Council,31UH,ICT,Information Technology,ICT Services,ICT Services,Consultants Fees,02/10/2013,"1,884.90",1266930,A000770,Hinckley & Bosworth Borough Council
North West Leicestershire District Council,31UH,ICT,Information Technology,ICT Services,ICT Services,Corporate PC Purchases,09/10/2013,"1,900.00",1266607,A001298,Phoenix Software Limited
North West Leicestershire District Council,31UH,HRAHRM,Housing Repairs,HRA Housing Repairs & Maintenance,HRA Housing Repairs & Maintenance,Schedule of Rates - repair and Maintenance,23/10/2013,"1,923.41",1268999,A031787,Laker BMS Ltd
North West Leicestershire District Council,31UH,HLC,Leisure Centres,Hermitage Leisure Centre,Hermitage Leisure Centre,Computing,23/10/2013,"1,950.00",1268695,A002968,Capita Business Services Ltd
North West Leicestershire District Council,31UH,EEHL,Environmental Health,Environmental Health & Licensing,Environmental Health & Licensing,Grants,09/10/2013,"1,966.91",1267079,A038668,Adaptions
North West Leicestershire District Council,31UH,ENOP,Street Management,Environment Parks,Environment Parks,Asset Protection,23/10/2013,"2,000.00",1268593,A039324,Four Counties Tree Specialists Ltd
North West Leicestershire District Council,31UH,PROPCL,Property Services,Property Commercial Lettings,Property Commercial Lettings,Postages,09/10/2013,"2,020.00",1267024,A008204,Purchase Power
North West Leicestershire District Council,31UH,HS,Housing Strategy,Community - Housing Strategy,Community - Housing Strategy,Grants,23/10/2013,"2,024.00",1268621,A013575,North West Leicestershire
North West Leicestershire District Council,31UH,HR,Corporate Director,Human Resources,Human Resources,Interim Support,16/10/2013,"2,052.80",1268078,A033121,Libby Carter Limited
North West Leicestershire District Council,31UH,HRAHRM,Housing Repairs,HRA Housing Repairs & Maintenance,HRA Housing Repairs & Maintenance,Schedule of Rates - repair and Maintenance,23/10/2013,"2,066.60",1268813,A031787,Laker BMS Ltd
North West Leicestershire District Council,31UH,ESS,Street Management,Environment - Street Scene,Environment - Street Scene,Stationery,09/10/2013,"2,067.20",1266987,A035478,Nagels UK Limited
North West Leicestershire District Council,31UH,EBC,Planning & Development,Building Control,Building Control,Fees - L.C.C.,02/10/2013,"2,205.00",1266729,A027423,Leicestershire County Council
North West Leicestershire District Council,31UH,LDLS,Legal & Democratic,Legal Services,Legal Services,Interim Support,02/10/2013,"2,206.67",1266743,A016315,Marrons Consultancies Limited
North West Leicestershire District Council,31UH,HRAHRM,Housing Repairs,HRA Housing Repairs & Maintenance,HRA Housing Repairs & Maintenance,Schedule of Rates - repair and Maintenance,16/10/2013,"2,239.60",1268168,A031787,Laker BMS Ltd
North West Leicestershire District Council,31UH,HLC,Leisure Centres,Hermitage Leisure Centre,Hermitage Leisure Centre,Service Contracts,02/10/2013,"2,249.00",1266609,A033909,Audience Systems Limited
North West Leicestershire District Council,31UH,HRAHRM,Housing Repairs,HRA Housing Repairs & Maintenance,HRA Housing Repairs & Maintenance,Schedule of Rates - repair and Maintenance,23/10/2013,"2,250.55",1268812,A031787,Laker BMS Ltd
North West Leicestershire District Council,31UH,HLC,Leisure Centres,Hermitage Leisure Centre,Hermitage Leisure Centre,Electricity,16/10/2013,"2,329.55",1268039,A030266,Southern Electric
North West Leicestershire District Council,31UH,HRAHRM,Housing Repairs,HRA Housing Repairs & Maintenance,HRA Housing Repairs & Maintenance,Schedule of Rates - repair and Maintenance,09/10/2013,"2,366.19",1267622,A031787,Laker BMS Ltd
North West Leicestershire District Council,31UH,EBC,Planning & Development,Building Control,Building Control,Fees - L.C.C.,23/10/2013,"2,387.00",1268624,A027423,Leicestershire County Council
North West Leicestershire District Council,31UH,HRAHRM,Housing Repairs,HRA Housing Repairs & Maintenance,HRA Housing Repairs & Maintenance,Schedule of Rates - repair and Maintenance,16/10/2013,"2,400.00",1268173,A031787,Laker BMS Ltd
North West Leicestershire District Council,31UH,HRAHRM,Housing Repairs,HRA Housing Repairs & Maintenance,HRA Housing Repairs & Maintenance,Schedule of Rates - repair and Maintenance,23/10/2013,"2,400.00",1268848,A031787,Laker BMS Ltd
North West Leicestershire District Council,31UH,HRAHRM,Housing Repairs,HRA Housing Repairs & Maintenance,HRA Housing Repairs & Maintenance,Schedule of Rates - repair and Maintenance,23/10/2013,"2,406.88",1269004,A031787,Laker BMS Ltd
North West Leicestershire District Council,31UH,CHEX,Chief Exec,Chief Executive,Chief Executive,Consultants Fees,16/10/2013,"2,475.40",1268093,A038049,R W Nelsey Consultancy
North West Leicestershire District Council,31UH,ICT,Information Technology,ICT Services,ICT Services,Admin Equipment - Maintenance,09/10/2013,"2,500.00",1267006,A034157,Idox Software Ltd
North West Leicestershire District Council,31UH,HRAHRM,Housing Repairs,HRA Housing Repairs & Maintenance,HRA Housing Repairs & Maintenance,Schedule of Rates - repair and Maintenance,23/10/2013,"2,507.46",1269003,A031787,Laker BMS Ltd
North West Leicestershire District Council,31UH,LDLS,Legal & Democratic,Legal Services,Legal Services,Consultants Fees,02/10/2013,"2,512.80",1266752,A040863,Marian wood
North West Leicestershire District Council,31UH,HRAHRM,Housing Repairs,HRA Housing Repairs & Maintenance,HRA Housing Repairs & Maintenance,Schedule of Rates - repair and Maintenance,16/10/2013,"2,529.05",1268191,A031787,Laker BMS Ltd
North West Leicestershire District Council,31UH,HRAHRM,Housing Repairs,HRA Housing Repairs & Maintenance,HRA Housing Repairs & Maintenance,Schedule of Rates - repair and Maintenance,23/10/2013,"2,530.19",1268838,A031787,Laker BMS Ltd
North West Leicestershire District Council,31UH,EXCH,Finance,Exchequer Services,Exchequer Services,Contract Payments (Other) Ext,16/10/2013,"2,550.00",1267945,A010859,Selima Limited
North West Leicestershire District Council,31UH,HRAHRM,Housing Repairs,HRA Housing Repairs & Maintenance,HRA Housing Repairs & Maintenance,Schedule of Rates - repair and Maintenance,23/10/2013,"2,586.35",1268836,A031787,Laker BMS Ltd
North West Leicestershire District Council,31UH,EES,Environmental Health,Environmental Services,Environmental Services,Grants,02/10/2013,"2,648.00",1266706,A001092,John Merison BMC Ltd
North West Leicestershire District Council,31UH,ICT,Information Technology,ICT Services,ICT Services,Admin Equipment - Maintenance,09/10/2013,"2,749.68",1267158,A038473,Cable & Wireless Worldwide
North West Leicestershire District Council,31UH,ENOT,Street Management,Environment Transport,Environment Transport,Publicity & Promotion,23/10/2013,"2,750.00",1268681,A000434,Crestline Printers Limited
North West Leicestershire District Council,31UH,HLC,Leisure Centres,Hermitage Leisure Centre,Hermitage Leisure Centre,Licences,23/10/2013,"2,854.09",1269078,A001293,The Performing Right Society
North West Leicestershire District Council,31UH,HRAHRM,Housing Repairs,HRA Housing Repairs & Maintenance,HRA Housing Repairs & Maintenance,Schedule of Rates - repair and Maintenance,23/10/2013,"2,941.32",1268839,A031787,Laker BMS Ltd
North West Leicestershire District Council,31UH,ICT,Information Technology,ICT Services,ICT Services,Admin Equipment - Maintenance,08/10/2013,"3,000.00",1267913,A001301,The Danwood Group Ltd
North West Leicestershire District Council,31UH,ECCTV,Planning & Development,Environment - Town Centre/CCTV,Environment - Town Centre/CCTV,Maintenance Contract,23/10/2013,"3,020.72",1268630,A035493,Quadrant Security Group Limited
North West Leicestershire District Council,31UH,HRAHRM,Housing Repairs,HRA Housing Repairs & Maintenance,HRA Housing Repairs & Maintenance,Schedule of Rates - repair and Maintenance,16/10/2013,"3,098.10",1268186,A031787,Laker BMS Ltd
North West Leicestershire District Council,31UH,CULTEV,Leisure & Culture,Cultural Services Arts & Events,Cultural Services Arts & Events,Ashby Statutes,16/10/2013,"3,124.50",1268138,A027423,Leicestershire County Council
North West Leicestershire District Council,31UH,LDLS,Legal & Democratic,Legal Services,Legal Services,Legal & Professional Services,23/10/2013,"3,240.50",1268635,A000251,Browne Jacobson LLP
North West Leicestershire District Council,31UH,EXCH,Finance,Exchequer Services,Exchequer Services,Gas,08/10/2013,"3,291.95",1267915,A000958,ESPO
North West Leicestershire District Council,31UH,HPLC,Leisure Centres,Hood Park Leisure Centre,Hood Park Leisure Centre,Licences,23/10/2013,"3,292.08",1269079,A001293,The Performing Right Society
North West Leicestershire District Council,31UH,CULTIC,Leisure & Culture,Cultural Services TIC,Cultural Services TIC,Theatre Tickets,16/10/2013,"3,337.20",1267940,A034672,Ashby Dramatic Society
North West Leicestershire District Council,31UH,HRAHRM,Housing Repairs,HRA Housing Repairs & Maintenance,HRA Housing Repairs & Maintenance,Schedule of Rates - repair and Maintenance,02/10/2013,"3,372.32",1266852,A031787,Laker BMS Ltd
North West Leicestershire District Council,31UH,HRAPBS,Housing,HRA Performance & Business Support,HRA Performance & Business Support,Legal & Professional Services,02/10/2013,"3,400.00",1266711,A040062,EST Enterprises
North West Leicestershire District Council,31UH,NACN,Neighbourhoods & Communities,N & C Neighbourhoods,N & C Neighbourhoods,Grant - Mantle Arts,09/10/2013,"3,500.00",1266994,A001039,Mantle Community Arts Limited
North West Leicestershire District Council,31UH,HRAPBS,Housing,HRA Performance & Business Support,HRA Performance & Business Support,Interim Support,09/10/2013,"3,600.00",1266979,A040578,Matthew Barney
North West Leicestershire District Council,31UH,PROPFM,Property Services,Property Facilities Management,Property Facilities Management,Electricity,16/10/2013,"3,762.43",1267949,A030266,Southern Electric
North West Leicestershire District Council,31UH,EES,Environmental Health,Environmental Services,Environmental Services,Grants,23/10/2013,"3,817.00",1268801,A000922,C V Lane & Son
North West Leicestershire District Council,31UH,HR,Corporate Director,Human Resources,Human Resources,Items To Be Leased,02/10/2013,"3,830.44",1266699,A039405,Inchcape Fleet Solutions
North West Leicestershire District Council,31UH,HRAPBS,Housing,HRA Performance & Business Support,HRA Performance & Business Support,Computing,09/10/2013,"3,850.00",1266612,A002968,Capita Business Services Ltd
North West Leicestershire District Council,31UH,ECCTV,Planning & Development,Environment - Town Centre/CCTV,Environment - Town Centre/CCTV,Agency Staff,16/10/2013,"3,923.00",1267954,A038132,Premier Security Services (Midlands) Limited
North West Leicestershire District Council,31UH,LDLS,Legal & Democratic,Legal Services,Legal Services,Consultants Fees,23/10/2013,"3,963.40",1269022,A040863,Marian Wood
North West Leicestershire District Council,31UH,CULTYP,Leisure & Culture,Cultural Services Children & YoungPeople,Cultural Services Children & YoungPeople,Extended Services,02/10/2013,"3,991.20",1266604,A040553,Leicestershire CAB
North West Leicestershire District Council,31UH,EDC,Planning & Development,Environment - Development Control,Environment - Development Control,Planning Application - Charges,23/10/2013,"4,000.00",1266755,A036190,Valuation Office Agency
North West Leicestershire District Council,31UH,ECP,Planning & Development,Environment Community Planning,Environment Community Planning,External Legal Fees & Advice,16/10/2013,"4,121.38",1268559,A036190,Valuation Office Agency
North West Leicestershire District Council,31UH,PROPFM,Property Services,Property Facilities Management,Property Facilities Management,Purchases,09/10/2013,"4,132.02",1267919,A035689,Mansell Construction Services Limited
North West Leicestershire District Council,31UH,HLBC,Leisure Centres,Hermitage Bar & Catering,Hermitage Bar & Catering,Bar Provisions,23/10/2013,"4,191.73",1268687,A039915,LWC - Birmingham
North West Leicestershire District Council,31UH,ICT,Information Technology,ICT Services,ICT Services,Admin Equipment - Maintenance,16/10/2013,"4,500.00",1268137,A039730,Infosec Cloud Ltd
North West Leicestershire District Council,31UH,LDLS,Legal & Democratic,Legal Services,Legal Services,Consultants Fees,16/10/2013,"4,527.60",1268132,A040743,Janice Milsom
North West Leicestershire District Council,31UH,EXCH,Finance,Exchequer Services,Exchequer Services,Mobile Telephones,08/10/2013,"4,559.51",1267917,A001861,Vodafone Limited
North West Leicestershire District Council,31UH,NACN,Neighbourhoods & Communities,N & C Neighbourhoods,N & C Neighbourhoods,Grants,02/10/2013,"4,935.02",1266980,A033349,Age Concern Leicestershire and Rutland
North West Leicestershire District Council,31UH,ESS,Street Management,Environment - Street Scene,Environment - Street Scene,Private Owners,23/10/2013,"4,981.50",1268679,A037057,D'Zign Uk Group
North West Leicestershire District Council,31UH,CS,Communications,Corporate - Customer Services,Corporate - Customer Services,Postages,09/10/2013,"5,000.00",1267596,A000079,Neopost Limited
North West Leicestershire District Council,31UH,LCM,Leisure & Culture,Leisure & Cult Mangt,Leisure & Cult Mangt,Positive Activities for Young People Exp,23/10/2013,"5,104.00",1268780,A040925,Community Education and Enterprise Projects
North West Leicestershire District Council,31UH,ICT,Information Technology,ICT Services,ICT Services,Telephone Charge / Rental,02/10/2013,"5,488.52",1266789,A008908,Virgin Media Business
North West Leicestershire District Council,31UH,ICT,Information Technology,ICT Services,ICT Services,Telephone Charge / Rental,16/10/2013,"5,704.89",1267972,A008908,Virgin Media Business
North West Leicestershire District Council,31UH,HRAHRM,Housing Repairs,HRA Housing Repairs & Maintenance,HRA Housing Repairs & Maintenance,Solid Fuel Servicing ,16/10/2013,"5,794.00",1268313,A035675,Elite Sweep Service
North West Leicestershire District Council,31UH,ENOP,Street Management,Environment Parks,Environment Parks,Plants,23/10/2013,"5,850.99",1268606,A039715,Baginton Nurseries Ltd
North West Leicestershire District Council,31UH,ESS,Street Management,Environment - Street Scene,Environment - Street Scene,Air Quality Strategy,23/10/2013,"6,000.00",1268647,A036596,TRL
North West Leicestershire District Council,31UH,HRAPBS,Housing,HRA Performance & Business Support,HRA Performance & Business Support,Legal & Professional Services,02/10/2013,"6,038.00",1266712,A040062,EST Enterprises
North West Leicestershire District Council,31UH,NACCS,Neighbourhoods & Communities,N & C Community Safety,N & C Community Safety,Other Miscellaneous Expenses,23/10/2013,"6,145.00",1268742,A023450,Km Beesley (Construction
North West Leicestershire District Council,31UH,EES,Environmental Health,Environmental Services,Environmental Services,External Legal Fees & Advice,23/10/2013,"6,450.00",1268591,A034291,Valuation Office Agency
North West Leicestershire District Council,31UH,EES,Environmental Health,Environmental Services,Environmental Services,Grants,02/10/2013,"6,613.00",1266705,A031587,Sandaland Properties (Measham) Ltd
North West Leicestershire District Council,31UH,HRAHRM,Housing Repairs,HRA Housing Repairs & Maintenance,HRA Housing Repairs & Maintenance,Plumbing & Heating,09/10/2013,"6,635.00",1267857,A037013,Rentokil Initial UK Limited
North West Leicestershire District Council,31UH,HRAPBS,Housing,HRA Performance & Business Support,HRA Performance & Business Support,Expenditure against earmarked reserve,02/10/2013,"7,687.50",1266613,A000770,Hinckley & Bosworth Borough Council
North West Leicestershire District Council,31UH,EXCH,Finance,Exchequer Services,Exchequer Services,Contract Payments (Other) Ext,16/10/2013,"8,000.00",1267944,A010859,Selima Limited
North West Leicestershire District Council,31UH,CULTYP,Leisure & Culture,Cultural Services Children & YoungPeople,Cultural Services Children & YoungPeople,Extended Services,16/10/2013,"8,500.00",1268007,A001208,MRC Community Action
North West Leicestershire District Council,31UH,ECCTV,Planning & Development,Environment - Town Centre/CCTV,Environment - Town Centre/CCTV,CCTV - Bloors/Jelsons 08/01556/FULM,09/10/2013,"8,962.00",1267012,A035493,Quadrant Security Group Limited
North West Leicestershire District Council,31UH,HRAHM,Housing,HRA Housing Management,HRA Housing Management,Insurance - Tenants Contributions,09/10/2013,"9,170.84",1267144,A037657,Jardine Lloyd Thompson
North West Leicestershire District Council,31UH,HS,Housing Strategy,Community - Housing Strategy,Community - Housing Strategy,Grants,23/10/2013,"9,350.00",1268622,A000530,East Midlands Housing Assocn
North West Leicestershire District Council,31UH,FINPLA,Finance,Financial Planning,Financial Planning,Consultation,23/10/2013,"9,950.00",1268626,A035603,Arlingclose Ltd
North West Leicestershire District Council,31UH,EES,Environmental Health,Environmental Services,Environmental Services,Contaminated Land Officer,16/10/2013,"9,966.79",1267974,A008631,Harborough District Council
North West Leicestershire District Council,31UH,ENOWM,Street Management,Environment Waste Management,Environment Waste Management,Other Miscellaneous Expenses,16/10/2013,"10,000.00",1268015,A027423,Leicestershire County Council
North West Leicestershire District Council,31UH,ENOWM,Street Management,Environment Waste Management,Environment Waste Management,General Materials,23/10/2013,"10,179.00",1268691,A024906,Straight Plc
North West Leicestershire District Council,31UH,EXCH,Finance,Exchequer Services,Exchequer Services,Agency Staff,16/10/2013,"10,517.26",1267958,A036958,Comensura Limited
North West Leicestershire District Council,31UH,EXCH,Finance,Exchequer Services,Exchequer Services,Gas,08/10/2013,"10,634.87",1267916,A035709,Corona Energy Retail 4 Ltd
North West Leicestershire District Council,31UH,EXCH,Finance,Exchequer Services,Exchequer Services,Agency Staff,23/10/2013,"12,266.73",1268617,A036958,Comensura Limited
North West Leicestershire District Council,31UH,HOFI,Finance,Head of Finance,Head of Finance,Legal & Professional Services,16/10/2013,"13,250.00",1268087,A000323,Charnwood Borough Council
North West Leicestershire District Council,31UH,EXCH,Finance,Exchequer Services,Exchequer Services,Agency Staff,09/10/2013,"13,363.49",1267037,A036958,Comensura Limited
North West Leicestershire District Council,31UH,NACN,Neighbourhoods & Communities,N & C Neighbourhoods,N & C Neighbourhoods,Grants,09/10/2013,"13,710.00",1266996,A040635,South West Leicestershire Citizens Advice Bureau
North West Leicestershire District Council,31UH,EXCH,Finance,Exchequer Services,Exchequer Services,Agency Staff,02/10/2013,"14,254.06",1266610,A036958,Comensura Limited
North West Leicestershire District Council,31UH,EXCH,Finance,Exchequer Services,Exchequer Services,Agency Staff,23/10/2013,"14,566.58",1269080,A036958,Comensura Limited
North West Leicestershire District Council,31UH,FINPLA,Finance,Financial Planning,Financial Planning,Recreation & Play Areas,23/10/2013,"15,017.30",1268777,A000091,Ashby De La Zouch Town Council
North West Leicestershire District Council,31UH,HOFI,Finance,Head of Finance,Head of Finance,Shared Revs & Bens Partnership costs,02/10/2013,"17,197.00",1266928,A000770,Hinckley & Bosworth Borough Council
North West Leicestershire District Council,31UH,HOFI,Finance,Head of Finance,Head of Finance,Shared Revs & Bens Partnership costs,23/10/2013,"17,197.00",1269070,A000770,Hinckley & Bosworth Borough Council
North West Leicestershire District Council,31UH,LDLS,Legal & Democratic,Legal Services,Legal Services,External Legal Fees & Advice,23/10/2013,"17,737.00",1268636,A000251,Browne Jacobson LLP
North West Leicestershire District Council,31UH,HOFI,Finance,Head of Finance,Head of Finance,Audit Commision Fees,23/10/2013,"20,140.50",1269069,A035156,KPMG LLP
North West Leicestershire District Council,31UH,BENS,Finance,Housing Benefits,Housing Benefits,Standard Rebates,17/10/2013,"20,155.36",1268669,A001381,Rent Allowance Payments
North West Leicestershire District Council,31UH,ENOT,Street Management,Environment Transport,Environment Transport,Purchases,16/10/2013,"20,662.07",1268139,A034942,Pace Petroleum Ltd
North West Leicestershire District Council,31UH,HRAOPS,Housing,HRA Older Persons Service,HRA Older Persons Service,Alarm Equipment Repairs,16/10/2013,"22,953.38",1267110,A028253,Northern Housing Consortium Ltd
North West Leicestershire District Council,31UH,BENS,Finance,Housing Benefits,Housing Benefits,Standard Rebates,26/09/2013,"23,859.88",1266636,A001381,Rent Allowance Payments
North West Leicestershire District Council,31UH,LCM,Leisure & Culture,Leisure & Cult Mangt,Leisure & Cult Mangt,District Wide Activities,09/10/2013,"25,725.79",1267082,A033936,Newbridge High School
North West Leicestershire District Council,31UH,HRAPBS,Housing,HRA Performance & Business Support,HRA Performance & Business Support,Principal Repayment,23/10/2013,"34,000.00",1268128,A040872,NDL Metascybe Limited
North West Leicestershire District Council,31UH,ENOWM,Street Management,Environment Waste Management,Environment Waste Management,Trade Refuse Disposal Costs,23/10/2013,"34,814.21",1268762,A000950,Leicestershire County Council
North West Leicestershire District Council,31UH,HRAHRM,Housing Repairs,HRA Housing Repairs & Maintenance,HRA Housing Repairs & Maintenance,Front Door - Timber,09/10/2013,"106,642.32",1267606,A039973,Lovell Partnerships Ltd
North West Leicestershire District Council,31UH,HRAHRM,Housing Repairs,HRA Housing Repairs & Maintenance,HRA Housing Repairs & Maintenance,Front Door - Timber,09/10/2013,"163,051.81",1267607,A039973,Lovell Partnerships Ltd
North West Leicestershire District Council,31UH,EXCH,Finance,Exchequer Services,Exchequer Services,LEICS FIRE & RESCUE,22/10/2013,"166,374.00",1268747,A028339,"Leicester, Leicestershire &"
North West Leicestershire District Council,31UH,EXCH,Finance,Exchequer Services,Exchequer Services,Leicstershire Police,22/10/2013,"495,661.60",1268745,A007096,The Office of the Police and Crime Commissioner for Leicestershire
North West Leicestershire District Council,31UH,EXCH,Finance,Exchequer Services,Exchequer Services,County Precept,22/10/2013,"3,030,267.00",1268746,A000950,Leicestershire County Council
,,,,,,,,"4,856,543.40",,,
